fUST/lending_fUST_20251125
["ID","MTS","AMOUNT","RATE_DAILY","PERIOD"]
[394840808,1764005448067,-500.0,0.00010959,2]
[394840809,1764005448077,-500.0,0.00010959,2]
[394840810,1764005448086,-500.0,0.00010959,2]
[394840811,1764005448095,-500.0,0.00010959,2]
[394840812,1764005448104,-500.0,0.00010959,2]
[394840813,1764005448116,-500.0,0.00010959,2]
[394840814,1764005448126,-500.0,0.00010959,2]
[394840815,1764005448135,-500.0,0.00010959,2]
[394840816,1764005448145,-500.0,0.00010959,2]
[394840817,1764005448155,-500.0,0.00010959,2]
[394840818,1764005448164,-500.0,0.00010959,2]
[394840819,1764005448173,-500.0,0.00010959,2]
[394840820,1764005448183,-500.0,0.00010959,2]
[394840821,1764005448192,-500.0,0.00010959,2]
[394840822,1764005448202,-500.0,0.00010959,2]
[394840823,1764005448212,-500.0,0.00010959,2]
[394840824,1764005448221,-500.0,0.00010959,2]
[394840825,1764005448231,-500.0,0.00010959,2]
[394840826,1764005448240,-500.0,0.00010959,2]
[394840827,1764005448250,-500.0,0.00010959,2]
[394840828,1764005448260,-500.0,0.00010959,2]
[394840829,1764005448269,-500.0,0.00010959,2]
[394840830,1764005448278,-500.0,0.00010959,2]
[394840831,1764005448287,-500.0,0.00010959,2]
[394840832,1764005448297,-500.0,0.00010959,2]
[394840833,1764005448306,-500.0,0.00010959,2]
[394840834,1764005448315,-500.0,0.00010959,2]
[394840835,1764005448325,-500.0,0.00010959,2]
[394840836,1764005448336,-500.0,0.00010959,2]
[394840837,1764005448346,-500.0,0.00010959,2]
[394840838,1764005448357,-500.0,0.00010959,2]
[394840839,1764005448370,-500.0,0.00010959,2]
[394840840,1764005448381,-500.0,0.00010959,2]
[394840841,1764005448392,-500.0,0.00010959,2]
[394840842,1764005448401,-500.0,0.00010959,2]
[394840843,1764005448411,-500.0,0.00010959,2]
[394840844,1764005448420,-500.0,0.00010959,2]
[394840845,1764005448430,-500.0,0.00010959,2]
[394840846,1764005448440,-500.0,0.00010959,2]
[394840847,1764005448450,-500.0,0.00010959,2]
[394840848,1764005448459,-500.0,0.00010959,2]
[394840849,1764005448469,-500.0,0.00010959,2]
[394840850,1764005448479,-500.0,0.00010959,2]
[394840851,1764005448489,-500.0,0.00010959,2]
[394840852,1764005448499,-500.0,0.00010959,2]
[394840853,1764005448508,-500.0,0.00010959,2]
[394840854,1764005448518,-500.0,0.00010959,2]
[394840855,1764005448528,-500.0,0.00010959,2]
[394840856,1764005448538,-500.0,0.00010959,2]
[394840857,1764005448548,-500.0,0.00010959,2]
[394840858,1764005448559,-600.06806618,0.00010959,2]
[394840859,1764005448569,-500.0,0.00010959,2]
[394840860,1764005448580,-500.0,0.00010959,2]
[394840861,1764005448590,-500.0,0.00010959,2]
[394840862,1764005448600,-500.0,0.00010959,2]
[394840863,1764005448609,-500.0,0.00010959,2]
[394840864,1764005448622,-500.0,0.00010959,2]
[394840865,1764005448632,-500.0,0.00010959,2]
[394840866,1764005448641,-500.0,0.00010959,2]
[394840867,1764005448651,-400.0,0.00010959,2]
[394840868,1764005448660,-500.0,0.00010959,2]
[394840869,1764005448671,-500.0,0.00010959,2]
[394840870,1764005448680,-500.0,0.00010959,2]
[394840871,1764005448690,-500.0,0.00010959,2]
[394840872,1764005448700,-500.0,0.00010959,2]
[394840873,1764005448709,-500.0,0.00010959,2]
[394840874,1764005448719,-500.0,0.00010959,2]
[394840875,1764005448728,-500.0,0.00010959,2]
[394840876,1764005448739,-500.0,0.00010959,2]
[394840877,1764005448748,-500.0,0.00010959,2]
[394840878,1764005448757,-500.0,0.00010959,2]
[394840879,1764005448767,-500.0,0.00010959,2]
[394840880,1764005448776,-500.0,0.00010959,2]
[394840881,1764005448786,-500.0,0.00010959,2]
[394840882,1764005448796,-500.0,0.00010959,2]
[394840883,1764005448806,-500.0,0.00010959,2]
[394840884,1764005448816,-500.0,0.00010959,2]
[394840885,1764005448826,-500.0,0.00010959,2]
[394840886,1764005448837,-500.0,0.00010959,2]
[394840887,1764005448847,-500.0,0.00010959,2]
[394840888,1764005448857,-195.35210388,0.00010973,2]
[394840889,1764005448868,-1000.0,0.00011021,2]
[394840890,1764005448885,-1000.0,0.00011021,2]
[394840891,1764005448895,-1000.0,0.00011021,2]
[394840892,1764005448905,-1000.0,0.00011021,2]
[394840893,1764005448914,-1000.0,0.00011121,2]
[394840894,1764005448925,-420.0,0.00011452,2]
[394840895,1764005448934,-1117.40295225,0.00011568,2]
[394840896,1764005448943,-1500.0,0.00011568,2]
[394840897,1764005448953,-1500.0,0.00011568,2]
[394840898,1764005448962,-1500.0,0.00011568,2]
[394840899,1764005448972,-1500.0,0.00011668,2]
[394840900,1764005448981,-414.0,0.00011748,2]
[394840901,1764005448990,-204.0,0.0001195,2]
[394840902,1764005448999,-2000.0,0.00012116,2]
[394840903,1764005449009,-2000.0,0.00012116,2]
[394840904,1764005449018,-2000.0,0.00012116,2]
[394840905,1764005449028,-2000.0,0.00012216,2]
[394840906,1764005449037,-500.0,0.00012328,2]
[394840907,1764005449047,-160.0,0.00012549,2]
[394840908,1764005449057,-353.36441271,0.00012557,2]
[394840909,1764005449067,-587.0,0.00012591,2]
[394840910,1764005449076,-2500.0,0.00012664,2]
[394840911,1764005449086,-2500.0,0.00012664,2]
[394840912,1764005449095,-2500.0,0.00012664,2]
[394840913,1764005449104,-2500.0,0.00012764,2]
[394840914,1764005449114,-195.35210388,0.00012826,2]
[394840915,1764005449125,-9641.3719727,0.000129,2]
[394840916,1764005449135,-9641.37197264,0.000129,2]
[394840917,1764005449145,-3000.0,0.00013212,2]
[394840918,1764005449155,-3000.0,0.00013212,2]
[394840919,1764005449165,-3000.0,0.00013212,2]
[394840920,1764005449176,-1461.52860639,0.00013312,2]
[394840921,1764005449186,-500.0,0.00013353,2]
[394840922,1764005449196,-500.0,0.00013382,2]
[394840923,1764005449207,-500.0,0.00013405,2]
[394840924,1764005449217,-500.0,0.00013424,2]
[394840925,1764005449228,-439.8504506,0.000136,2]
[394840926,1764005449238,-1731.88162371,0.00013601,2]
[394840927,1764005449249,-169.8831568,0.00013668,2]
[394840928,1764005449261,-520.12441421,0.00013698,2]
[394840929,1764005449271,-530.20492553,0.00013698,2]
[394840930,1764005449282,-500.0,0.00013698,2]
[394840931,1764005449293,-500.0,0.00013698,2]
[394840932,1764005449304,-500.0,0.00013698,2]
[394840933,1764005449314,-500.0,0.00013698,2]
[394840934,1764005449325,-525.62362889,0.00013698,2]
[394840935,1764005449337,-500.0,0.00013698,2]
[394840936,1764005449349,-500.0,0.00013698,2]
[394840937,1764005449359,-1357.29,0.00013698,2]
[394840938,1764005449372,-500.0,0.00013698,2]
[394840939,1764005449383,-500.0,0.00013698,2]
[394840940,1764005449393,-500.0,0.00013698,2]
[394840941,1764005449403,-500.0,0.00013698,2]
[394840942,1764005449413,-500.0,0.00013698,2]
[394840943,1764005449424,-500.0,0.00013698,2]
[394840944,1764005449435,-522.83093069,0.00013698,2]
[394840945,1764005449445,-500.0,0.00013698,2]
[394840946,1764005449456,-532.43296252,0.00013698,2]
[394840947,1764005449466,-500.0,0.00013698,2]
[394840948,1764005449476,-546.31487132,0.00013698,2]
[394840949,1764005449486,-500.0,0.00013698,2]
[394840950,1764005449496,-500.0,0.00013698,2]
[394840951,1764005449506,-534.70107332,0.00013698,2]
[394840952,1764005449516,-500.0,0.00013698,2]
[394840953,1764005449526,-500.0,0.00013698,2]
[394840954,1764005449535,-500.0,0.00013698,2]
[394840955,1764005449545,-500.0,0.00013698,2]
[394840956,1764005449555,-500.0,0.00013698,2]
[394840957,1764005449565,-500.0,0.00013698,2]
[394840958,1764005449575,-500.0,0.00013698,2]
[394840959,1764005449584,-500.0,0.00013698,2]
[394840960,1764005449593,-151.0,0.00013698,2]
[394840961,1764005449603,-500.0,0.00013698,2]
[394840962,1764005449612,-500.0,0.00013698,2]
[394840963,1764005449624,-198.63517515,0.00013698,2]
[394840964,1764005449633,-151.0,0.00013698,2]
[394840965,1764005449642,-160.928486,0.00013698,2]
[394840966,1764005449652,-512.34369723,0.00013698,2]
[394840967,1764005449662,-500.0,0.00013698,2]
[394840968,1764005449671,-459.4196394,0.00013698,2]
[394840969,1764005449681,-500.0,0.00013698,2]
[394840970,1764005449690,-500.0,0.00013698,2]
[394840971,1764005449699,-573.17182929,0.00013698,2]
[394840972,1764005449709,-151.0,0.00013698,2]
[394840973,1764005449719,-151.0,0.00013698,2]
[394840974,1764005449728,-151.0,0.00013698,2]
[394840975,1764005449738,-151.0,0.00013698,2]
[394840976,1764005449748,-500.0,0.00013698,2]
[394840977,1764005449757,-500.0,0.00013698,2]
[394840978,1764005449767,-500.0,0.00013698,2]
[394840979,1764005449776,-469.61098639,0.00013698,2]
[394840980,1764005449785,-500.0,0.00013698,2]
[394840981,1764005449794,-610.84262311,0.00013698,2]
[394840982,1764005449805,-301.67080869,0.00013698,2]
[394840983,1764005449815,-512.02265097,0.00013698,2]
[394840984,1764005449824,-500.0,0.00013698,2]
[394840985,1764005449833,-1040.72,0.00013698,2]
[394840986,1764005449843,-500.0,0.00013698,2]
[394840987,1764005449852,-151.0,0.00013698,2]
[394840988,1764005449862,-151.0,0.00013698,2]
[394840989,1764005449874,-151.0,0.00013698,2]
[394840990,1764005449887,-500.0,0.00013698,2]
[394840991,1764005449897,-560.47874993,0.00013698,2]
[394840992,1764005449906,-500.0,0.00013698,2]
[394840993,1764005449916,-500.0,0.00013698,2]
[394840994,1764005449926,-159.574615,0.00013698,2]
[394840995,1764005449935,-159.574615,0.00013698,2]
[394840996,1764005449946,-159.574615,0.00013698,2]
[394840997,1764005449955,-159.574615,0.00013698,2]
[394840998,1764005449967,-159.574615,0.00013698,2]
[394840999,1764005449976,-159.574615,0.00013698,2]
[394841000,1764005449986,-500.0,0.00013698,2]
[394841001,1764005449999,-159.574615,0.00013698,2]
[394841002,1764005450009,-159.574615,0.00013698,2]
[394841003,1764005450018,-159.574615,0.00013698,2]
[394841004,1764005450027,-159.574615,0.00013698,2]
[394841005,1764005450037,-159.574615,0.00013698,2]
[394841006,1764005450046,-159.574615,0.00013698,2]
[394841007,1764005450056,-340.44787072,0.00013698,2]
[394841008,1764005450066,-500.0,0.00013698,2]
[394841009,1764005450076,-500.0,0.00013698,2]
[394841010,1764005450086,-500.0,0.00013698,2]
[394841011,1764005450095,-500.0,0.00013698,2]
[394841012,1764005450104,-271.79672704,0.00013698,2]
[394841013,1764005450114,-462.93241272,0.00013698,2]
[394841014,1764005450125,-1566.58,0.00013698,2]
[394841015,1764005450134,-386.10666186,0.00013698,2]
[394841016,1764005450143,-500.0,0.00013698,2]
[394841017,1764005450153,-500.0,0.00013698,2]
[394841018,1764005450163,-531.28812334,0.00013698,2]
[394841019,1764005450172,-558.50738163,0.00013698,2]
[394841020,1764005450182,-442.989572,0.00013698,2]
[394841021,1764005450191,-500.0,0.00013698,2]
[394841022,1764005450200,-151.0,0.00013698,2]
[394841023,1764005450210,-151.0,0.00013698,2]
[394841024,1764005450220,-500.0,0.00013698,2]
[394841025,1764005450229,-151.0,0.00013698,2]
[394841026,1764005450239,-151.0,0.00013698,2]
[394841027,1764005450250,-151.0,0.00013698,2]
[394841028,1764005450260,-151.0,0.00013698,2]
[394841029,1764005450269,-151.0,0.00013698,2]
[394841030,1764005450279,-151.0,0.00013698,2]
[394841031,1764005450289,-151.0,0.00013698,2]
[394841032,1764005450298,-500.0,0.00013698,2]
[394841033,1764005450308,-151.0,0.00013698,2]
[394841034,1764005450318,-154.19612,0.00013698,2]
[394841035,1764005450327,-151.733362,0.00013698,2]
[394841036,1764005450336,-383.17168664,0.00013698,2]
[394841037,1764005450345,-500.0,0.00013698,2]
[394841038,1764005450354,-500.0,0.00013698,2]
[394841039,1764005450363,-680.01,0.00013698,2]
[394841040,1764005450373,-500.0,0.00013698,2]
[394841041,1764005450382,-500.0,0.00013698,2]
[394841042,1764005450391,-500.0,0.00013698,2]
[394841043,1764005450399,-407.55860562,0.00013698,2]
[394841044,1764005450408,-500.0,0.00013698,2]
[394841045,1764005450417,-613.10041856,0.00013698,2]
[394841046,1764005450427,-281.25102332,0.00013698,2]
[394841047,1764005450437,-562.29908229,0.00013698,2]
[394841048,1764005450446,-500.0,0.00013698,2]
[394841049,1764005450455,-500.0,0.00013698,2]
[394841050,1764005450464,-316.48164178,0.00013698,2]
[394841051,1764005450473,-500.0,0.00013698,2]
[394841052,1764005450482,-541.87,0.00013698,2]
[394841053,1764005450491,-821.87,0.00013698,2]
[394841054,1764005450500,-500.0,0.00013698,2]
[394841055,1764005450510,-500.0,0.00013698,2]
[394841056,1764005450519,-500.0,0.00013698,2]
[394841057,1764005450528,-559.80023611,0.00013698,2]
[394841058,1764005450538,-500.0,0.00013698,2]
[394841059,1764005450547,-474.49117499,0.00013698,2]
[394841060,1764005450557,-600.28,0.00013698,2]
[394841061,1764005450567,-500.0,0.00013698,2]
[394841062,1764005450577,-1065.35,0.00013698,2]
[394841063,1764005450586,-45.00729235,0.00013698,2]
[394841064,1764005450607,-454.99270765,0.00013698,2]
[394841065,1764005450616,-500.0,0.00013698,2]
[394841066,1764005450626,-292.77908901,0.00013698,2]
[394841067,1764005450635,-500.0,0.00013698,2]
[394841068,1764005450644,-500.0,0.00013698,2]
[394841069,1764005450653,-500.0,0.00013698,2]
[394841070,1764005450663,-496.14025856,0.00013698,2]
[394841071,1764005450672,-957.71,0.00013698,2]
[394841072,1764005450681,-500.0,0.00013698,2]
[394841073,1764005450691,-878.72,0.00013698,2]
[394841074,1764005450700,-207.90033133,0.00013698,2]
[394841075,1764005450710,-500.0,0.00013698,2]
[394841076,1764005450720,-500.0,0.00013698,2]
[394841077,1764005450730,-500.0,0.00013698,2]
[394841078,1764005450739,-500.0,0.00013698,2]
[394841079,1764005450749,-285.30906432,0.00013698,2]
[394841080,1764005450759,-500.0,0.00013698,2]
[394841081,1764005450768,-458.14549323,0.00013698,2]
[394841082,1764005450778,-500.0,0.00013698,2]
[394841083,1764005450787,-280.39640753,0.00013698,2]
[394841084,1764005450797,-633.91622116,0.00013698,2]
[394841085,1764005450806,-500.0,0.00013698,2]
[394841086,1764005450815,-500.0,0.00013698,2]
[394841087,1764005450824,-500.0,0.00013698,2]
[394841088,1764005450834,-500.0,0.00013698,2]
[394841089,1764005450843,-557.71,0.00013698,2]
[394841090,1764005450852,-328.15565041,0.00013698,2]
[394841091,1764005450861,-500.0,0.00013698,2]
[394841092,1764005450871,-500.0,0.00013698,2]
[394841093,1764005450883,-364.41416352,0.00013698,2]
[394841094,1764005450896,-514.53365672,0.00013698,2]
[394841095,1764005450906,-500.0,0.00013698,2]
[394841096,1764005451057,-110.69803175,0.00013698,2]
[394841097,1764005451079,-300.0,0.00010623,2]
[394841098,1764005451089,-403.73005689,0.00013698,2]
[394841099,1764005451098,-473.35259231,0.00013698,2]
[394841100,1764005451108,-395.0573508,0.00013698,2]
[394841101,1764005451120,-37.24675025,0.00013698,2]
[394841102,1764005451130,-220.12327704,0.00013698,2]
[394841103,1764005451139,-559.42,0.00013698,2]
[394841104,1764005451149,-500.0,0.00013698,2]
[394841105,1764005451159,-500.0,0.00013698,2]
[394841106,1764005451168,-500.0,0.00013698,2]
[394841107,1764005451177,-1114.12,0.00013698,2]
[394841108,1764005451186,-500.0,0.00013698,2]
[394841109,1764005451196,-533.04166071,0.00013698,2]
[394841110,1764005451205,-356.75974912,0.00013698,2]
[394841111,1764005451227,-143.24025088,0.00013698,2]
[394841112,1764005451236,-500.0,0.00013698,2]
[394841113,1764005451246,-753.01,0.00013698,2]
[394841114,1764005451255,-2949.72,0.00013698,2]
[394841115,1764005451265,-620.2,0.00013698,2]
[394841116,1764005451278,-500.0,0.00013698,2]
[394841117,1764005451287,-532.54048617,0.00013698,2]
[394841118,1764005451296,-500.0,0.00013698,2]
[394841119,1764005451306,-781.44,0.00013698,2]
[394841120,1764005451315,-520.23627382,0.00013698,2]
[394841121,1764005451324,-551.64833991,0.00013698,2]
[394841122,1764005451334,-500.0,0.00013698,2]
[394841123,1764005451344,-517.14700369,0.00013698,2]
[394841124,1764005451353,-500.0,0.00013698,2]
[394841125,1764005451363,-637.60064484,0.00013698,2]
[394841126,1764005451380,-500.0,0.00013698,2]
[394841127,1764005451390,-500.0,0.00013698,2]
[394841128,1764005451399,-522.77534133,0.00013698,2]
[394841129,1764005451409,-660.58,0.00013698,2]
[394841130,1764005451419,-468.92952212,0.00013698,2]
[394841131,1764005451430,-500.0,0.00013698,2]
[394841132,1764005451439,-591.0,0.00013698,2]
[394841133,1764005451449,-500.0,0.00013698,2]
[394841134,1764005451458,-500.0,0.00013698,2]
[394841135,1764005451467,-697.49,0.00013698,2]
[394841136,1764005451477,-500.0,0.00013698,2]
[394841137,1764005451487,-500.0,0.00013698,2]
[394841138,1764005451496,-500.0,0.00013698,2]
[394841139,1764005451506,-539.00649576,0.00013698,2]
[394841141,1764005710048,16519.0,0.000111,3]
[394841143,1764006009720,16519.0,0.000111,3]
[394841163,1764006216459,1047.09263567,7.831e-05,2]
[394841170,1764006224590,1047.09263567,7.831e-05,2]
[394841171,1764006239411,1047.09263567,7.831e-05,2]
[394841172,1764006247352,1047.09263567,7.831e-05,2]
[394841173,1764006262172,1047.09263567,7.831e-05,2]
[394841174,1764006270119,1047.09263567,7.831e-05,2]
[394841175,1764006284712,1047.09263567,7.831e-05,2]
[394841176,1764006292481,1047.09263567,7.831e-05,2]
[394841177,1764006307092,1047.09263567,7.831e-05,2]
[394841178,1764006312574,4559.0,0.000111,3]
[394841179,1764006315152,1047.09263567,7.831e-05,2]
[394841180,1764006329925,1047.09263567,7.831e-05,2]
[394841181,1764006337774,1047.09263567,7.831e-05,2]
[394841182,1764006353152,1047.09263567,7.831e-05,2]
[394841183,1764006360910,1047.09263567,7.831e-05,2]
[394841184,1764006376288,1047.09263567,7.831e-05,2]
[394841185,1764006383999,1047.09263567,7.831e-05,2]
[394841186,1764006393724,1047.09263567,7.831e-05,2]
[394841187,1764006541085,150.0,0.00017009,30]
[394841188,1764006541493,150.0,0.00018555,30]
[394841189,1764006591169,187.83822258,7.774e-05,2]
[394841190,1764006599219,187.83822258,7.774e-05,2]
[394841191,1764006607465,187.83822258,7.774e-05,2]
[394841192,1764006610502,2354.0,0.000111,3]
[394841193,1764006615220,187.83822258,7.814e-05,2]
[394841194,1764006623226,187.83822258,7.814e-05,2]
[394841195,1764006631110,187.83822258,7.814e-05,2]
[394841248,1764006631667,-187.83822258,7.893e-05,2]
[394841250,1764006631676,-2414.21177742,8.029e-05,2]
[394841252,1764006631688,-224.25365378,8.029e-05,2]
[394841254,1764006631697,-1802.723753,8.201e-05,2]
[394841256,1764006631707,-386.79804528,8.487e-05,2]
[394841258,1764006631719,-246.29459039,8.487e-05,2]
[394841260,1764006631729,-150.0,8.748e-05,2]
[394841262,1764006631738,-414.0,8.748e-05,2]
[394841265,1764006631748,-150.0,8.869e-05,2]
[394841267,1764006631758,-1200.0,8.869e-05,2]
[394841268,1764006631767,-24.59808813,8.87e-05,2]
[394841270,1764006631779,-204.40191187,8.87e-05,2]
[394841272,1764006631788,-300.0,8.87e-05,2]
[394841274,1764006631797,-300.0,8.87e-05,2]
[394841276,1764006631807,-4095.1131826,8.871e-05,2]
[394841278,1764006631816,-29359.24948986,8.871e-05,2]
[394841382,1764006637678,-500.0,8.87e-05,2]
[394841384,1764006637688,-259.77525939,8.87e-05,2]
[394841386,1764006637698,-20640.75051014,8.871e-05,2]
[394841388,1764006637707,-500.0,9.047e-05,2]
[394841390,1764006637717,-411.55224486,9.047e-05,2]
[394841392,1764006637727,-580.03097998,9.047e-05,2]
[394841394,1764006637736,-500.0,9.047e-05,2]
[394841396,1764006637745,-500.0,9.047e-05,2]
[394841398,1764006637754,-500.0,9.047e-05,2]
[394841400,1764006637763,-300.0,9.048e-05,2]
[394841402,1764006637773,-300.0,9.048e-05,2]
[394841404,1764006637783,-300.0,9.048e-05,2]
[394841406,1764006637792,-300.0,9.048e-05,2]
[394841408,1764006637801,-300.0,9.048e-05,2]
[394841410,1764006637811,-300.0,9.048e-05,2]
[394841412,1764006637821,-300.0,9.048e-05,2]
[394841414,1764006637830,-300.0,9.048e-05,2]
[394841416,1764006637839,-300.0,9.048e-05,2]
[394841418,1764006637848,-300.0,9.048e-05,2]
[394841420,1764006637857,-300.0,9.048e-05,2]
[394841421,1764006637868,-300.0,9.048e-05,2]
[394841423,1764006637878,-300.0,9.048e-05,2]
[394841425,1764006637887,-300.0,9.048e-05,2]
[394841427,1764006637897,-300.0,9.048e-05,2]
[394841429,1764006637906,-500.0,9.633e-05,2]
[394841430,1764006637915,-500.0,9.633e-05,2]
[394841431,1764006637925,-500.0,9.633e-05,2]
[394841432,1764006637935,-563.41234383,9.633e-05,2]
[394841433,1764006637945,-500.0,9.633e-05,2]
[394841434,1764006637954,-500.0,9.633e-05,2]
[394841435,1764006637965,-890000.0,9.659e-05,2]
[394841436,1764006637975,-932.0,9.754e-05,2]
[394841437,1764006637985,-1680.0,9.756e-05,2]
[394841438,1764006637994,-420.0,9.757e-05,2]
[394841439,1764006638004,-449.49913862,9.76e-05,2]
[394841440,1764006638014,-600.0,9.851e-05,2]
[394841441,1764006638025,-221.64910265,9.893e-05,2]
[394841442,1764006638036,-1000.0,0.00010181,2]
[394841443,1764006638046,-1000.0,0.00010181,2]
[394841444,1764006638056,-1000.0,0.00010181,2]
[394841445,1764006638068,-1000.0,0.00010181,2]
[394841446,1764006638077,-1000.0,0.00010181,2]
[394841447,1764006638087,-250.0,0.00010376,2]
[394841448,1764006638097,-187.78006525,0.00010408,2]
[394841449,1764006638106,-160.361,0.00010412,2]
[394841450,1764006638122,-449.74562085,0.00010473,2]
[394841451,1764006638132,-500.0,0.00010473,2]
[394841452,1764006638142,-500.0,0.00010473,2]
[394841453,1764006638155,-263.10538302,0.00010721,2]
[394841454,1764006638165,-1500.0,0.00010728,2]
[394841455,1764006638176,-1500.0,0.00010728,2]
[394841456,1764006638186,-1500.0,0.00010728,2]
[394841457,1764006638196,-1500.0,0.00010728,2]
[394841458,1764006638206,-1500.0,0.00010728,2]
[394841459,1764006638216,-1200.0,0.00010731,2]
[394841460,1764006638230,-587.0,0.00010733,2]
[394841461,1764006638240,-720.0,0.00010836,2]
[394841462,1764006638250,-194.72792766,0.00010956,2]
[394841463,1764006638260,-500.0,0.00010958,2]
[394841464,1764006638271,-500.0,0.00010959,2]
[394841465,1764006638281,-500.0,0.00010959,2]
[394841466,1764006638291,-500.0,0.00010959,2]
[394841467,1764006638303,-500.0,0.00010959,2]
[394841468,1764006638312,-233.79450537,0.00010959,2]
[394841469,1764006638328,-500.0,0.00010959,2]
[394841470,1764006638339,-500.0,0.00010959,2]
[394841471,1764006638349,-500.0,0.00010959,2]
[394841472,1764006638359,-500.0,0.00010959,2]
[394841473,1764006638371,-500.0,0.00010959,2]
[394841474,1764006638381,-500.0,0.00010959,2]
[394841475,1764006638392,-500.0,0.00010959,2]
[394841476,1764006638402,-500.0,0.00010959,2]
[394841477,1764006638412,-500.0,0.00010959,2]
[394841478,1764006638423,-500.0,0.00010959,2]
[394841479,1764006638433,-500.0,0.00010959,2]
[394841480,1764006638443,-500.0,0.00010959,2]
[394841481,1764006638454,-500.0,0.00010959,2]
[394841482,1764006638464,-500.0,0.00010959,2]
[394841483,1764006638474,-500.0,0.00010959,2]
[394841484,1764006638484,-500.0,0.00010959,2]
[394841485,1764006638494,-500.0,0.00010959,2]
[394841486,1764006638504,-500.0,0.00010959,2]
[394841487,1764006638514,-500.0,0.00010959,2]
[394841488,1764006638524,-500.0,0.00010959,2]
[394841489,1764006638534,-500.0,0.00010959,2]
[394841490,1764006638544,-500.0,0.00010959,2]
[394841491,1764006638554,-500.0,0.00010959,2]
[394841492,1764006638565,-271.4870179,0.00010959,2]
[394841493,1764006638576,-500.0,0.00010959,2]
[394841494,1764006638586,-500.0,0.00010959,2]
[394841495,1764006638597,-500.0,0.00010959,2]
[394841496,1764006638608,-500.0,0.00010959,2]
[394841497,1764006638620,-525.98216539,0.00011021,2]
[394841498,1764006638630,-195.61,0.00011099,2]
[394841499,1764006638641,-195.61,0.00011099,2]
[394841500,1764006638650,-195.6,0.00011099,2]
[394841501,1764006638660,-998.60195726,0.00011099,2]
[394841502,1764006638670,-1351.37085115,0.00011276,2]
[394841503,1764006638681,-2000.0,0.00011276,2]
[394841504,1764006638691,-2000.0,0.00011276,2]
[394841505,1764006638701,-2000.0,0.00011276,2]
[394841506,1764006638712,-2000.0,0.00011276,2]
[394841507,1764006638722,-1369.26,0.00011468,2]
[394841508,1764006638731,-269.23569803,0.00011504,2]
[394841509,1764006638742,-150.0,0.00011748,2]
[394841510,1764006638751,-414.0,0.00011748,2]
[394841511,1764006638762,-823.0,0.00011806,2]
[394841512,1764006638772,-2368.8100117,0.00011824,2]
[394841513,1764006638782,-2500.0,0.00011824,2]
[394841514,1764006638792,-2500.0,0.00011824,2]
[394841515,1764006638801,-2500.0,0.00011824,2]
[394841516,1764006638811,-255.45998271,0.00011893,2]
[394841517,1764006638820,-864.0,0.0001192,2]
[394841518,1764006638830,-500.0,0.00012054,2]
[394841519,1764006638840,-266.46,0.00012329,2]
[394841520,1764006638849,-222.05,0.00012329,2]
[394841521,1764006638859,-185.04,0.00012329,2]
[394841522,1764006638870,-154.2,0.00012329,2]
[394841523,1764006638881,-771.05,0.00012329,2]
[394841524,1764006638892,-1091.99322271,0.00012372,2]
[394841525,1764006638902,-3000.0,0.00012372,2]
[394841526,1764006638912,-3000.0,0.00012372,2]
[394841527,1764006638923,-160.0,0.00012499,2]